Cogmind - Beta 13 @@@ ROGUE MODE // 2024.07.27 @ 14:59:42 Player: OctagonalPrism Result: Destroyed by G-34 Mercenary with Small Laser Performance ------------- Evolutions (1) 500 Regions Visited (2) 400 Robots Destroyed (15) 75 Value Destroyed (394) 394 Prototype IDs (3) 60 Alien Tech Used (0) 0 Bonus (0) 0 TOTAL SCORE: 1429 Bonus ------- None Cogmind --------- Core Integrity 0/400 Matter 231/300 Energy 52/250 System Corruption 6% Temperature Cool (16) Movement Treading (160) Location -9/Materials Parts ------- > --- POWER (1) -------- Ion Engine > --- PROPULSION (2) --- Light Treads > --- UTILITY (4) ------ Heat Sink Small Storage Unit > --- WEAPON (2) ------- Light Assault Rifle > --- INVENTORY (8) ---- Ion Engine High-capacity Matter Pod (50) Maul Peak State ------------ > --- POWER ------------ Ion Engine > --- PROPULSION ------- Wheel Compact Wheel > --- UTILITY ---------- Improved Heat Sink Small Storage Unit > --- WEAPON ----------- Assault Rifle Assault Rifle > --- INVENTORY -------- Ion Engine Light Assault Rifle [Rating: 9] Favorites ----------- Power Ion Engine Engine Ion Engine Propulsion Compact Wheel Treads Light Treads Wheel Compact Wheel Utility Small Storage Unit Device Heat Sink Storage Small Storage Unit Processor Targeting Computer Weapon Light Assault Rifle Energy Gun Small Laser Ballistic Gun Light Assault Rifle Launcher Grenade Launcher Build | -11 -10 -9 ------- Run | Yrd Mat Mat Slots Evolved 2 | . . 2 Power . | . . . Propulsion . | . . . Utility 2 | . . 2 Weapon . | . . . Parts Attached 20 | 3 7 10 Power 3 | 1 . 2 Engine 3 | 1 . 2 Core . | . . . Reactor . | . . . Propulsion 4 | 1 1 2 Treads 1 | . . 1 Leg . | . . . Wheel 3 | 1 1 1 Hover . | . . . Flight . | . . . Utility 5 | 1 2 2 Device 3 | . 1 2 Storage 1 | 1 . . Processor 1 | . 1 . Hackware . | . . . Protection . | . . . Artifact . | . . . Weapon 8 | . 4 4 Energy Gun 1 | . . 1 Energy Cannon . | . . . Ballistic Gun 6 | . 4 2 Ballistic Cannon . | . . . Launcher 1 | . . 1 Special Weapon . | . . . Impact Weapon . | . . . Slashing Weapon . | . . . Piercing Weapon . | . . . Special Melee Weapon . | . . . Unidentified Prototypes 1 | . . 1 Parts Lost 13 | . 3 10 Power 1 | . . 1 Propulsion 3 | . 1 2 Utility 3 | . 1 2 Weapon 6 | . 1 5 Highest Loss Streak 7 | . 3 7 To Critical Strikes . | . . . Average Slot Usage (%) 70 | . 78 66 Engine 11 | . 14 9 Wheel 11 | . 17 8 Device 10 | . 3 14 Storage 12 | . 14 11 Processor 3 | . 4 2 Ballistic Gun 21 | . 23 20 Naked Turns . | . . . Heaviest Build 17 | 10 15 17 Greatest Support 26 | 16 26 20 Greatest Overweight (x) 5 | . . 5 Average Overweight (x) . | . . . Largest Inventory Capacity 8 | 8 8 8 Average Capacity 7 | 7 8 8 Most Carried 6 | 5 5 6 Average Carried 4 | 3 3 4 Final Capacity 8 | 8 8 8 Final Carried 5 | 5 4 3 Class Distribution -------------------- 100% | Mutant Dominant Class ---------------- Mutant | -10/Materials Mutant | -9/Materials Resources | -11 -10 -9 ----------- Run | Yrd Mat Mat Matter Collected 574 | 168 105 301 Remotely . | . . . Salvage Created 565 | . 105 460 Parts 23 | . 3 20 Haulers Intercepted . | . . . Recyclers Shooed 1 | . . 1 Parts Field Recycled . | . . . Retrieved Matter . | . . . Parts Self-Destructed . | . . . Prevented . | . . . Kills | -11 -10 -9 ------- Run | Yrd Mat Mat Combat Hostiles Destroyed 13 | . 2 11 Guns 12 | . 2 10 AOE 1 | . . 1 Classes Destroyed 6 | . 1 5 Recycler 1 | . . 1 Operator 1 | . . 1 Swarmer 4 | . . 4 Grunt 7 | . 2 5 Brawler 1 | . . 1 Sentry 1 | . . 1 Best Kill Streak 5 | . 1 5 Combat Bots Only 5 | . 1 5 Max Kills in Single Turn 1 | . 1 1 Gunslinging . | . . . Exploded 1 | . . 1 Melee . | . . . Uniques/NPCs Destroyed . | . . . Combat | -11 -10 -9 -------- Run | Yrd Mat Mat Hostile Shots Fired 131 | . 20 111 Missed 26 | . 5 21 Damage Taken 1580 | . 476 1104 Core 582 | . 171 411 Absorbed by Shields . | . . . Core Remaining (%) 65 | 100 31 . Volleys Fired 65 | . 13 52 Largest 2 | . 2 2 Hottest 70 | . 40 70 Shots Fired 124 | . 26 98 Gun 121 | . 26 95 Cannon . | . . . Launcher 3 | . . 3 Special . | . . . Kinetic 114 | . 26 88 Thermal 7 | . . 7 Explosive 3 | . . 3 Electromagnetic . | . . . Robot Hit Streak 13 | . 7 13 Robot Miss Streak 4 | . 2 4 Penetration Max . | . . . Secondary Targets 2 | . . 2 Max Gunslinging Chain 1 | . . 1 Shots Hit Robots 87 | . 20 67 Core Hits 34 | . 6 28 Critical Kills . | . . . Critical Parts Destroyed 1 | . . 1 Critical Strikes 1 | . . 1 Destroy 1 | . . 1 Melee Attacks . | . . . Impact . | . . . Slashing . | . . . Piercing . | . . . Sneak Attacks . | . . . Combat Hostiles . | . . . Follow-up Attacks . | . . . Damage Inflicted 978 | . 252 726 Guns 907 | . 252 655 Cannons . | . . . Explosions 71 | . . 71 Melee . | . . . Ramming . | . . . Kinetic 854 | . 252 602 Thermal 53 | . . 53 Explosive 71 | . . 71 Electromagnetic . | . . . Impact . | . . . Slashing . | . . . Piercing . | . . . Highest Corruption 6 | . . 6 Average Corruption 5 | . . 5 Corruption Purged . | . . . Corruption Blocked . | . . . Overload Shots . | . . . Overflow Damage . | . . . Projectiles . | . . . Explosions . | . . . Melee . | . . . Knockbacks . | . . . Impact . | . . . Kinetic . | . . . Secondary . | . . . Self-Inflicted Damage 5 | . . 5 Shots 1 | . . 1 Rammed . | . . . Targets Rammed . | . . . Kicked . | . . . Crushed . | . . . Highest Temperature 16 | . 16 . Average Temperature 3 | . 3 . Received Heat Transfer 573 | . 141 432 Siege Activations . | . . . Robots Corrupted . | . . . Combat Hostiles . | . . . Parts Fried . | . . . Impact Corruptions . | . . . Robots Melted . | . . . Combat Hostiles . | . . . Parts Melted . | . . . Heat Transferred 125 | . . 125 Parts Sabotaged . | . . . Parts Stolen . | . . . Parts Stripped . | . . . Power Chain Reactions . | . . . Alert | -11 -10 -9 ------- Run | Yrd Mat Mat Peak Influence 206 | . 90 206 Initial 32 | . . 32 Average 85 | . 53 113 Maximum Alert Level 1 | . . 1 Low Security (%) 96 | 100 100 94 Level 1 3 | . . 5 Level 2 . | . . . Level 3 . | . . . Level 4 . | . . . Level 5 . | . . . High Security . | . . . Max Security . | . . . Squads Dispatched 1 | . . 1 Investigation . | . . . Extermination . | . . . Reinforcement 1 | . . 1 Assault . | . . . Garrison . | . . . Intercept . | . . . Searches Triggered . | . . . Construction Impeded . | . . . Haulers Reinforced . | . . . Active Scanning Responses . | . . . Cargo Convoy Interrupts . | . . . Stealth | -11 -10 -9 --------- Run | Yrd Mat Mat Distress Signals 1 | . . 1 Communications Jammed . | . . . Distress Signals . | . . . Times Spotted 28 | . 7 21 Peak Tracking Total 5 | . 2 5 Tactical Retreats 2 | . 1 1 Traps | -11 -10 -9 ------- Run | Yrd Mat Mat Traps Triggered . | . . . Indirectly . | . . . Trap Hack Attempts . | . . . Triggered . | . . . Disarmed . | . . . Reprogrammed . | . . . Reused . | . . . Traps Extracted . | . . . Installed . | . . . Triggered . | . . . Machines | -11 -10 -9 ---------- Run | Yrd Mat Mat Machines Disabled . | . . . Max in Single Turn . | . . . Machines Repaired . | . . . Machines Dismantled . | . . . Machines Sabotaged . | . . . Overloaded Fab Kills . | . . . Hacking | -11 -10 -9 --------- Run | Yrd Mat Mat Machines Accessed 5 | . 2 3 Terminals 5 | . 2 3 Fabricators . | . . . Repair Stations . | . . . Recycling Units . | . . . Scanalyzers . | . . . Garrison Access . | . . . Total Hacks 20 | . 8 12 Successful 9 | . 4 5 Failed 11 | . 4 7 Catastrophic 1 | . . 1 Database Lockouts . | . . . Manual 14 | . 5 9 Terminals 20 | . 8 12 Fabricators . | . . . Repair Stations . | . . . Recycling Units . | . . . Scanalyzers . | . . . Garrison Access . | . . . Terminal Hacks 3 | . 2 1 Prototype ID Bank 1 | . 1 . Locate Traps 1 | . 1 . Zone Layout 1 | . . 1 Fabricator Hacks . | . . . Repair Station Hacks . | . . . Recycling Unit Hacks . | . . . Scanalyzer . | . . . Garrison Access Hacks . | . . . Unauthorized Hacks 6 | . 2 4 Terminals 6 | . 2 4 Botnet 5 | . 2 3 Operators 1 | . . 1 Fabricators . | . . . Repair Stations . | . . . Recycling Units . | . . . Scanalyzers . | . . . Garrison Access . | . . . Data Cores Recovered . | . . . Used . | . . . Hacking Detections 5 | . 2 3 Full Trace Events 2 | . 1 1 Feedback Events . | . . . Feedback Blocked . | . . . Robot Schematics Acquired . | . . . Robots Built . | . . . Authchips . | . . . Time . | . . . Total Robot Build Rating . | . . . Part Schematics Acquired . | . . . Parts Built . | . . . Authchips . | . . . Time . | . . . Total Part Build Rating . | . . . Parts Repaired . | . . . Time . | . . . Parts Recycled . | . . . Recycled Matter . | . . . Retrieved Matter . | . . . Retrieved Components . | . . . Parts Scanalyzed . | . . . Part Schematics Acquired . | . . . Parts Damaged . | . . . Bothacking | -11 -10 -9 ------------ Run | Yrd Mat Mat Used RIF Installer . | . . . Robots Hacked . | . . . Non-combat . | . . . Combat . | . . . Robot Hacks Applied . | . . . Relay Couplers Released . | . . . Fabnet Peak Effective % . | . . . Robots Rewired . | . . . Allies Hacked . | . . . Hacks Repelled . | . . . Allies | -11 -10 -9 -------- Run | Yrd Mat Mat Total Allies . | . . . Largest Group . | . . . Highest-Rated Group . | . . . Highest-Rated Ally . | . . . Total Orders . | . . . Ally Attacks . | . . . Total Damage . | . . . Kills . | . . . Allies Corrupted . | . . . Allies Melted . | . . . Intel | -11 -10 -9 ------- Run | Yrd Mat Mat Robot Analysis Total . | . . . Derelict Logs Recovered . | . . . Drone Launches . | . . . Drone Recoveries . | . . . Exploration | -11 -10 -9 ------------- Run | Yrd Mat Mat Turns Passed 784 | 58 257 469 Spaces Moved 475 | 50 197 228 Core 9 | 1 . 8 Treads 3 | . . 3 Legs . | . . . Wheels 463 | 49 197 217 Hover . | . . . Flight . | . . . Fastest Speed 50 | 50 90 100 Average Speed 106 | 99 97 116 Slowest Speed 300 | 100 100 300 Overloaded Moves . | . . . Propulsion Burnouts . | . . . Robots Hopped . | . . . Cave-ins Triggered . | . . . Exploration Rate (%) 21 | 3 35 27 Regions Visited 2 Branch Regions . Pre-discovered Areas . | . . . Known Exits Taken . | . . . Unknown Exits Taken 2 | 1 1 . Scrap Searched . | . . . Spaces Dug . | . . . Terrain Destroyed 10 | . . 10 Melee . | . . . Projectile . | . . . AOE 10 | . . 10 Terrain Rammed . | . . . Walls Destroyed . | . . . Machines Disabled . | . . . Actions | -11 -10 -9 --------- Run | Yrd Mat Mat Total 636 | 57 235 344 Wait 64 | . 13 51 Move 473 | 49 196 228 Hop . | . . . Pick Up 11 | 5 4 2 Fast Attach 12 | 3 3 6 Attach 8 | . 4 4 Detach 1 | . . 1 Swap . | . . . Drop 2 | . 2 . Fire 65 | . 13 52 Melee . | . . . Ram . | . . . Kick . | . . . Crush . | . . . Escape Stasis . | . . . Rewire . | . . . Trap . | . . . Miscellaneous . | . . . Route ------- -11/Scrapyard -10/Materials -9/Materials (discovered 1 exit: [*Min]) History --------- Turn | Location | Event 2 | -11/Scrapyard | Met Revision 17 12 | -11/Scrapyard | Discovered new exit (range 15) 59 | -11/Scrapyard | Entered Materials 187 | -10/Materials | Core integrity fell below 50% 217 | -10/Materials | Lost 3 parts (1n1u1w) 285 | -10/Materials | Discovered new exit (range 11) 311 | -10/Materials | Build established: Mutant 316 | -10/Materials | Entered another Materials area 316 | -9/Materials | Evolved 2 slots: Utility x2 690 | -9/Materials | Discovered new exit (range 13) 762 | -9/Materials | Core integrity fell below 50% 778 | -9/Materials | Core integrity fell below 20% 785 | -9/Materials | Destroyed by G-34 Mercenary with Small Laser Last Messages --------------- S-10 Pest destroyed. Switching to secondary target: Y-45 Defender. Lgt. Assault Rifle destroyed. Heat Sink destroyed. System corrupted by crushing effect (+3). The unstable cave ceiling collapses. Sml. Laser destroyed. System corrupted by crushing effect (+3). Knocked back. B-36 Bruiser destroyed. Grenade Launcher destroyed. Acquired Lgt. Treads. Acquired 3 matter. R-06 Scavenger collects Hammer. U-05 Engineer lays Concrete. Acquired Lgt. Assault Rifle. R-06 Scavenger destroyed. U-05 Engineer builds a Wall. U-05 Engineer lays Concrete. U-05 Engineer builds a Wall. Map ----- +----------------------------------------------------+ | + ?????????????????? | | ######## #????????????????????? | | #????# ##/### #????????????????????? | | #????# # ## #????????????????????? | | ###### # ## #????????????????????? | | / # ## ?????????????????? | | ## # ## ???????????????? | | ## " # ## ????????????????? | | ## T # ## ######## ##????????????????? | | ## ! " # ## #??????????????????????????? | | +### ###### #??????????????????????????? | | ""#??# #??????????????????????????? | | T"#??# #??????????????????????????? | | / ""#??# #??????????????????????????? | | +## ###### ########??"????????????????? | | # """ #?""????????????????? | | # """ # ""????????????????? | | # """ ut # ""????????????????? | | # #######u ## + ??????????????????? | | # #??# m # g#???????????????????? | | ###### #??# # #???????????????????? | | #???## #??# Y= ###########?????????? | | ###???# #??# /%=# ????????? | | ??????# ######??# !=%g ????????? | | ####### #???????# ! g ^ ????????? | | #???????#/! @##########?????????????? | | #########???????#/! #??????????????????????? | | ????????????????# ##??????????????????????? | | ????????????????##########???????????????????????? | | ?????????????????????????????????????????????????? | | | | | | | | | | | | | | | | | | | | | | | | | | | | | | | | | | | | | | | | | +----------------------------------------------------+ Best States ------------- Heat Dissipation 48 Energy Generation 14 Energy Capacity 280 Matter Stores 300 Matter Capacity 300 Sight Range 16 Terrain Scan Density 10 Evasion (%) 42 Targeting Accuracy 5 Recoil Reduction 1 Item Schematics ----------------- None Robot Schematics ------------------ None Fabricated ------------ Nothing Alien Tech Used ----------------- None Achievements -------------- None Challenges ------------ None Game ------ Seed RefineryPowerWell Manual? 0 Play Time 00:11:16 Cumulative 39.9 hours Start 2024.07.27 @ 14:48:05 End 2024.07.27 @ 14:59:42 Sessions 1 Manual Loads 0 Difficulty Rogue Special Mode None Game No. 36 Rogue 36 Adventurer 0 Explorer 0 Win Type - Total 0 Types 0/0/0/0/0/0/0/0/0 Lore% 26 Gallery% 33 Achievement% 26 Wizard Run 0 Options --------- Layout 1 ASCII 0 Keyboard 0 Movement Arrows Keybinds 0 Fullscreen 1 Font 16/Terminus Map View 55x38 Zoom Use 0% Tactical HUD 0 Map Filters NONE Filters NONE Steam 1 RUN: d78d09e2-4b34-43cd-a1b7-6ea17337febf